Workbook

Sheet Epidemieverlauf
B3: Population | C3: 10000
B4: Kontakte pro Person | C4: 20 | E4: Tag | F4: Suszeptibel | G4: Infiziert | H4: Gesundet | I4: Neuinfektionen | J4: Neugesundet
B5: Infektionsrate | C5: 0.015 | E5: 0 | F5: =C3-G5 -> 9990 | G5: 10 | H5: 0 | I5: =F5*prob_infect(G5/$C$3,$C$5,$C$4) -> 2.996572966 | J5: =IF(E5<$C$7,0,OFFSET(I5,-$C$7,0)) -> 0
B6: pro S-I-Kontakt | E6: =1+E5 -> 1 | F6: =F5-I5 -> 9987.003427 | G6: =G5+I5-J5 -> 12.99657297 | H6: =H5+J5 -> 0 | I6: =F6*prob_infect(G6/$C$3,$C$5,$C$4) -> 3.893183491 | J6: =IF(E6<$C$7,0,OFFSET(I6,-$C$7,0)) -> 0
B7: Verzögerung | C7: 14 | E7: =1+E6 -> 2 | F7: =F6-I6 -> 9983.110244 | G7: =G6+I6-J6 -> 16.88975646 | H7: =H6+J6 -> 0 | I7: =F7*prob_infect(G7/$C$3,$C$5,$C$4) -> 5.057151763 | J7: =IF(E7<$C$7,0,OFFSET(I7,-$C$7,0)) -> 0
B8: Zeitraum | C8: 100 | E8: 3 | F8: 9978.053092 | G8: 21.94690822 | H8: =H7+J7 -> 0 | I8: =F8*prob_infect(G8/$C$3,$C$5,$C$4) -> 6.567568262 | J8: =IF(E8<$C$7,0,OFFSET(I8,-$C$7,0)) -> 0
E9: 4 | F9: 9971.485524 | G9: 28.51447648 | H9: =H8+J8 -> 0 | I9: =F9*prob_infect(G9/$C$3,$C$5,$C$4) -> 8.526485587 | J9: =IF(E9<$C$7,0,OFFSET(I9,-$C$7,0)) -> 0
E10: 5 | F10: 9962.959038 | G10: 37.04096207 | H10: =H9+J9 -> 0 | I10: =F10*prob_infect(G10/$C$3,$C$5,$C$4) -> 11.06528587 | J10: =IF(E10<$C$7,0,OFFSET(I10,-$C$7,0)) -> 0
E11: 6 | F11: 9951.893752 | G11: 48.10624794 | H11: =H10+J10 -> 0 | I11: =F11*prob_infect(G11/$C$3,$C$5,$C$4) -> 14.35260665 | J11: =IF(E11<$C$7,0,OFFSET(I11,-$C$7,0)) -> 0
E12: 7 | F12: 9937.541145 | G12: 62.45885459 | H12: =H11+J11 -> 0 | I12: =F12*prob_infect(G12/$C$3,$C$5,$C$4) -> 18.60405936 | J12: =IF(E12<$C$7,0,OFFSET(I12,-$C$7,0)) -> 0
E13: 8 | F13: 9918.937086 | G13: 81.06291394 | H13: =H12+J12 -> 0 | I13: =F13*prob_infect(G13/$C$3,$C$5,$C$4) -> 24.09389448 | J13: =IF(E13<$C$7,0,OFFSET(I13,-$C$7,0)) -> 0
E14: 9 | F14: 9894.843192 | G14: 105.1568084 | H14: =H13+J13 -> 0 | I14: =F14*prob_infect(G14/$C$3,$C$5,$C$4) -> 31.16857249 | J14: =IF(E14<$C$7,0,OFFSET(I14,-$C$7,0)) -> 0
E15: 10 | F15: 9863.674619 | G15: 136.3253809 | H15: =H14+J14 -> 0 | I15: =F15*prob_infect(G15/$C$3,$C$5,$C$4) -> 40.26180594 | J15: =IF(E15<$C$7,0,OFFSET(I15,-$C$7,0)) -> 0
E16: 11 | F16: 9823.412813 | G16: 176.5871869 | H16: =H15+J15 -> 0 | I16: =F16*prob_infect(G16/$C$3,$C$5,$C$4) -> 51.90991947 | J16: =IF(E16<$C$7,0,OFFSET(I16,-$C$7,0)) -> 0
E17: 12 | F17: 9771.502894 | G17: 228.4971063 | H17: =H16+J16 -> 0 | I17: =F17*prob_infect(G17/$C$3,$C$5,$C$4) -> 66.76515032 | J17: =IF(E17<$C$7,0,OFFSET(I17,-$C$7,0)) -> 0
E18: 13 | F18: 9704.737743 | G18: 295.2622566 | H18: =H17+J17 -> 0 | I18: =F18*prob_infect(G18/$C$3,$C$5,$C$4) -> 85.60255291 | J18: =IF(E18<$C$7,0,OFFSET(I18,-$C$7,0)) -> 0
E19: 14 | F19: 9619.13519 | G19: 380.8648096 | H19: =H18+J18 -> 0 | I19: =F19*prob_infect(G19/$C$3,$C$5,$C$4) -> 109.3132378 | J19: =IF(E19<$C$7,0,OFFSET(I19,-$C$7,0)) -> 2.996572966
E20: 15 | F20: 9509.821953 | G20: 487.1814744 | H20: =H19+J19 -> 2.996572966 | I20: =F20*prob_infect(G20/$C$3,$C$5,$C$4) -> 138.0295729 | J20: =IF(E20<$C$7,0,OFFSET(I20,-$C$7,0)) -> 3.893183491
E21: 16 | F21: 9371.79238 | G21: 621.3178639 | H21: =H20+J20 -> 6.889756457 | I21: =F21*prob_infect(G21/$C$3,$C$5,$C$4) -> 173.1478449 | J21: =IF(E21<$C$7,0,OFFSET(I21,-$C$7,0)) -> 5.057151763
E22: 17 | F22: 9198.644535 | G22: 789.4085571 | H22: =H21+J21 -> 11.94690822 | I22: =F22*prob_infect(G22/$C$3,$C$5,$C$4) -> 215.4114341 | J22: =IF(E22<$C$7,0,OFFSET(I22,-$C$7,0)) -> 6.567568262
E23: 18 | F23: 8983.233101 | G23: 998.2524229 | H23: =H22+J22 -> 18.51447648 | I23: =F23*prob_infect(G23/$C$3,$C$5,$C$4) -> 265.2332693 | J23: =IF(E23<$C$7,0,OFFSET(I23,-$C$7,0)) -> 8.526485587
E24: 19 | F24: 8717.999831 | G24: 1254.959207 | H24: =H23+J23 -> 27.04096207 | I24: =F24*prob_infect(G24/$C$3,$C$5,$C$4) -> 322.418143 | J24: =IF(E24<$C$7,0,OFFSET(I24,-$C$7,0)) -> 11.06528587
E25: 20 | F25: 8395.581688 | G25: 1566.312064 | H25: =H24+J24 -> 38.10624794 | I25: =F25*prob_infect(G25/$C$3,$C$5,$C$4) -> 385.8206361 | J25: =IF(E25<$C$7,0,OFFSET(I25,-$C$7,0)) -> 14.35260665
E26: 21 | F26: 8009.761052 | G26: 1937.780093 | H26: =H25+J25 -> 52.45885459 | I26: =F26*prob_infect(G26/$C$3,$C$5,$C$4) -> 452.9984197 | J26: =IF(E26<$C$7,0,OFFSET(I26,-$C$7,0)) -> 18.60405936
E27: 22 | F27: 7556.762633 | G27: 2372.174453 | H27: =H26+J26 -> 71.06291394 | I27: =F27*prob_infect(G27/$C$3,$C$5,$C$4) -> 519.9822872 | J27: =IF(E27<$C$7,0,OFFSET(I27,-$C$7,0)) -> 24.09389448
E28: 23 | F28: 7036.780345 | G28: 2868.062846 | H28: =H27+J27 -> 95.15680842 | I28: =F28*prob_infect(G28/$C$3,$C$5,$C$4) -> 581.3400614 | J28: =IF(E28<$C$7,0,OFFSET(I28,-$C$7,0)) -> 31.16857249
E29: 24 | F29: 6455.440284 | G29: 3418.234335 | H29: =H28+J28 -> 126.3253809 | I29: =F29*prob_infect(G29/$C$3,$C$5,$C$4) -> 630.7117155 | J29: =IF(E29<$C$7,0,OFFSET(I29,-$C$7,0)) -> 40.26180594
E30: 25 | F30: 5824.728568 | G30: 4008.684245 | H30: =H29+J29 -> 166.5871869 | I30: =F30*prob_infect(G30/$C$3,$C$5,$C$4) -> 661.8780526 | J30: =IF(E30<$C$7,0,OFFSET(I30,-$C$7,0)) -> 51.90991947
E31: 26 | F31: 5162.850516 | G31: 4618.652378 | H31: =H30+J30 -> 218.4971063 | I31: =F31*prob_infect(G31/$C$3,$C$5,$C$4) -> 670.1809466 | J31: =IF(E31<$C$7,0,OFFSET(I31,-$C$7,0)) -> 66.76515032
E32: 27 | F32: 4492.669569 | G32: 5222.068174 | H32: =H31+J31 -> 285.2622566 | I32: =F32*prob_infect(G32/$C$3,$C$5,$C$4) -> 653.8372351 | J32: =IF(E32<$C$7,0,OFFSET(I32,-$C$7,0)) -> 85.60255291
E33: 28 | F33: 3838.832334 | G33: 5790.302856 | H33: =H32+J32 -> 370.8648096 | I33: =F33*prob_infect(G33/$C$3,$C$5,$C$4) -> 614.5822629 | J33: =IF(E33<$C$7,0,OFFSET(I33,-$C$7,0)) -> 109.3132378
E34: 29 | F34: 3224.250071 | G34: 6295.571881 | H34: =H33+J33 -> 480.1780474 | I34: =F34*prob_infect(G34/$C$3,$C$5,$C$4) -> 557.2992471 | J34: =IF(E34<$C$7,0,OFFSET(I34,-$C$7,0)) -> 138.0295729
E35: 30 | F35: 2666.950824 | G35: 6714.841556 | H35: =H34+J34 -> 618.2076203 | I35: =F35*prob_infect(G35/$C$3,$C$5,$C$4) -> 488.8154215 | J35: =IF(E35<$C$7,0,OFFSET(I35,-$C$7,0)) -> 173.1478449
E36: 31 | F36: 2178.135403 | G36: 7030.509132 | H36: =H35+J35 -> 791.3554653 | I36: =F36*prob_infect(G36/$C$3,$C$5,$C$4) -> 416.1629303 | J36: =IF(E36<$C$7,0,OFFSET(I36,-$C$7,0)) -> 215.4114341
E37: 32 | F37: 1761.972472 | G37: 7231.260628 | H37: =H36+J36 -> 1006.766899 | I37: =F37*prob_infect(G37/$C$3,$C$5,$C$4) -> 345.2997662 | J37: =IF(E37<$C$7,0,OFFSET(I37,-$C$7,0)) -> 265.2332693
E38: 33 | F38: 1416.672706 | G38: 7311.327125 | H38: =H37+J37 -> 1272.000169 | I38: =F38*prob_infect(G38/$C$3,$C$5,$C$4) -> 280.3929796 | J38: =IF(E38<$C$7,0,OFFSET(I38,-$C$7,0)) -> 322.418143
E39: 34 | F39: 1136.279727 | G39: 7269.301962 | H39: =H38+J38 -> 1594.418312 | I39: =F39*prob_infect(G39/$C$3,$C$5,$C$4) -> 223.7341125 | J39: =IF(E39<$C$7,0,OFFSET(I39,-$C$7,0)) -> 385.8206361
E40: 35 | F40: 912.545614 | G40: 7107.215438 | H40: =H39+J39 -> 1980.238948 | I40: =F40*prob_infect(G40/$C$3,$C$5,$C$4) -> 176.0694034 | J40: =IF(E40<$C$7,0,OFFSET(I40,-$C$7,0)) -> 452.9984197
E41: 36 | F41: 736.4762106 | G41: 6830.286422 | H41: =H40+J40 -> 2433.237367 | I41: =F41*prob_infect(G41/$C$3,$C$5,$C$4) -> 137.0868356 | J41: =IF(E41<$C$7,0,OFFSET(I41,-$C$7,0)) -> 519.9822872
E42: 37 | F42: 599.3893749 | G42: 6447.39097 | H42: =H41+J41 -> 2953.219655 | I42: =F42*prob_infect(G42/$C$3,$C$5,$C$4) -> 105.8768068 | J42: =IF(E42<$C$7,0,OFFSET(I42,-$C$7,0)) -> 581.3400614
E43: 38 | F43: 493.5125682 | G43: 5971.927716 | H43: =H42+J42 -> 3534.559716 | I43: =F43*prob_infect(G43/$C$3,$C$5,$C$4) -> 81.28183204 | J43: =IF(E43<$C$7,0,OFFSET(I43,-$C$7,0)) -> 630.7117155
E44: 39 | F44: 412.2307362 | G44: 5422.497832 | H44: =H43+J43 -> 4165.271432 | I44: =F44*prob_infect(G44/$C$3,$C$5,$C$4) -> 62.12223525 | J44: =IF(E44<$C$7,0,OFFSET(I44,-$C$7,0)) -> 661.8780526
E45: 40 | F45: 350.1085009 | G45: 4822.742015 | H45: =H44+J44 -> 4827.149484 | I45: =F45*prob_infect(G45/$C$3,$C$5,$C$4) -> 47.31986615 | J45: =IF(E45<$C$7,0,OFFSET(I45,-$C$7,0)) -> 670.1809466
E46: 41 | F46: 302.7886348 | G46: 4199.880934 | H46: =H45+J45 -> 5497.330431 | I46: =F46*prob_infect(G46/$C$3,$C$5,$C$4) -> 35.9510953 | J46: =IF(E46<$C$7,0,OFFSET(I46,-$C$7,0)) -> 653.8372351
E47: 42 | F47: 266.8375395 | G47: 3581.994795 | H47: =H46+J46 -> 6151.167666 | I47: =F47*prob_infect(G47/$C$3,$C$5,$C$4) -> 27.2568102 | J47: =IF(E47<$C$7,0,OFFSET(I47,-$C$7,0)) -> 614.5822629
E48: 43 | F48: 239.5807293 | G48: 2994.669342 | H48: =H47+J47 -> 6765.749929 | I48: =F48*prob_infect(G48/$C$3,$C$5,$C$4) -> 20.62972791 | J48: =IF(E48<$C$7,0,OFFSET(I48,-$C$7,0)) -> 557.2992471
E49: 44 | F49: 218.9510013 | G49: 2457.999823 | H49: =H48+J48 -> 7323.049176 | I49: =F49*prob_infect(G49/$C$3,$C$5,$C$4) -> 15.59224392 | J49: =IF(E49<$C$7,0,OFFSET(I49,-$C$7,0)) -> 488.8154215
E50: 45 | F50: 203.3587574 | G50: 1984.776645 | H50: =H49+J49 -> 7811.864597 | I50: =F50*prob_infect(G50/$C$3,$C$5,$C$4) -> 11.77222243 | J50: =IF(E50<$C$7,0,OFFSET(I50,-$C$7,0)) -> 416.1629303
E51: 46 | F51: 191.586535 | G51: 1580.385937 | H51: =H50+J50 -> 8228.027528 | I51: =F51*prob_infect(G51/$C$3,$C$5,$C$4) -> 8.88173732 | J51: =IF(E51<$C$7,0,OFFSET(I51,-$C$7,0)) -> 345.2997662
E52: 47 | F52: 182.7047977 | G52: 1243.967908 | H52: =H51+J51 -> 8573.327294 | I52: =F52*prob_infect(G52/$C$3,$C$5,$C$4) -> 6.698843588 | J52: =IF(E52<$C$7,0,OFFSET(I52,-$C$7,0)) -> 280.3929796
E53: 48 | F53: 176.0059541 | G53: 970.2737724 | H53: =H52+J52 -> 8853.720273 | I53: =F53*prob_infect(G53/$C$3,$C$5,$C$4) -> 5.052997913 | J53: =IF(E53<$C$7,0,OFFSET(I53,-$C$7,0)) -> 223.7341125
E54: 49 | F54: 170.9529562 | G54: 751.5926578 | H54: =H53+J53 -> 9077.454386 | I54: =F54*prob_infect(G54/$C$3,$C$5,$C$4) -> 3.813603902 | J54: =IF(E54<$C$7,0,OFFSET(I54,-$C$7,0)) -> 176.0694034
E55: 50 | F55: 167.1393523 | G55: 579.3368583 | H55: =H54+J54 -> 9253.523789 | I55: =F55*prob_infect(G55/$C$3,$C$5,$C$4) -> 2.881042653 | J55: =IF(E55<$C$7,0,OFFSET(I55,-$C$7,0)) -> 137.0868356
E56: 51 | F56: 164.2583096 | G56: 445.1310653 | H56: =H55+J55 -> 9390.610625 | I56: =F56*prob_infect(G56/$C$3,$C$5,$C$4) -> 2.179636281 | J56: =IF(E56<$C$7,0,OFFSET(I56,-$C$7,0)) -> 105.8768068
E57: 52 | F57: 162.0786733 | G57: 341.4338949 | H57: =H56+J56 -> 9496.487432 | I57: =F57*prob_infect(G57/$C$3,$C$5,$C$4) -> 1.65212188 | J57: =IF(E57<$C$7,0,OFFSET(I57,-$C$7,0)) -> 81.28183204
E58: 53 | F58: 160.4265515 | G58: 261.8041847 | H58: =H57+J57 -> 9577.769264 | I58: =F58*prob_infect(G58/$C$3,$C$5,$C$4) -> 1.2553206 | J58: =IF(E58<$C$7,0,OFFSET(I58,-$C$7,0)) -> 62.12223525
E59: 54 | F59: 159.1712309 | G59: 200.93727 | H59: =H58+J58 -> 9639.891499 | I59: =F59*prob_infect(G59/$C$3,$C$5,$C$4) -> 0.9567605414 | J59: =IF(E59<$C$7,0,OFFSET(I59,-$C$7,0)) -> 47.31986615
E60: 55 | F60: 158.2144703 | G60: 154.5741644 | H60: =H59+J59 -> 9687.211365 | I60: =F60*prob_infect(G60/$C$3,$C$5,$C$4) -> 0.7320622776 | J60: =IF(E60<$C$7,0,OFFSET(I60,-$C$7,0)) -> 35.9510953
E61: 56 | F61: 157.482408 | G61: 119.3551314 | H61: =H60+J60 -> 9723.162461 | I61: =F61*prob_infect(G61/$C$3,$C$5,$C$4) -> 0.5629319646 | J61: =IF(E61<$C$7,0,OFFSET(I61,-$C$7,0)) -> 27.2568102
E62: 57 | F62: 156.9194761 | G62: 92.66125318 | H62: =H61+J61 -> 9750.419271 | I62: =F62*prob_infect(G62/$C$3,$C$5,$C$4) -> 0.4356351566 | J62: =IF(E62<$C$7,0,OFFSET(I62,-$C$7,0)) -> 20.62972791
E63: 58 | F63: 156.4838409 | G63: 72.46716043 | H63: =H62+J62 -> 9771.048999 | I63: =F63*prob_infect(G63/$C$3,$C$5,$C$4) -> 0.3398471091 | J63: =IF(E63<$C$7,0,OFFSET(I63,-$C$7,0)) -> 15.59224392
E64: 59 | F64: 156.1439938 | G64: 57.21476362 | H64: =H63+J63 -> 9786.641243 | I64: =F64*prob_infect(G64/$C$3,$C$5,$C$4) -> 0.2677938502 | J64: =IF(E64<$C$7,0,OFFSET(I64,-$C$7,0)) -> 11.77222243
E65: 60 | F65: 155.8762 | G65: 45.71033504 | H65: =H64+J64 -> 9798.413465 | I65: =F65*prob_infect(G65/$C$3,$C$5,$C$4) -> 0.2136154232 | J65: =IF(E65<$C$7,0,OFFSET(I65,-$C$7,0)) -> 8.88173732
E66: 61 | F66: 155.6625845 | G66: 37.04221314 | H66: =H65+J65 -> 9807.295202 | I66: =F66*prob_infect(G66/$C$3,$C$5,$C$4) -> 0.1728913203 | J66: =IF(E66<$C$7,0,OFFSET(I66,-$C$7,0)) -> 6.698843588
E67: 62 | F67: 155.4896932 | G67: 30.51626087 | H67: =H66+J66 -> 9813.994046 | I67: =F67*prob_infect(G67/$C$3,$C$5,$C$4) -> 0.1422870368 | J67: =IF(E67<$C$7,0,OFFSET(I67,-$C$7,0)) -> 5.052997913
E68: 63 | F68: 155.3474062 | G68: 25.60555 | H68: =H67+J67 -> 9819.047044 | I68: =F68*prob_infect(G68/$C$3,$C$5,$C$4) -> 0.1192891413 | J68: =IF(E68<$C$7,0,OFFSET(I68,-$C$7,0)) -> 3.813603902
E69: 64 | F69: 155.228117 | G69: 21.91123524 | H69: =H68+J68 -> 9822.860648 | I69: =F69*prob_infect(G69/$C$3,$C$5,$C$4) -> 0.1020053403 | J69: =IF(E69<$C$7,0,OFFSET(I69,-$C$7,0)) -> 2.881042653
E70: 65 | F70: 155.1261117 | G70: 19.13219792 | H70: =H69+J69 -> 9825.74169 | I70: =F70*prob_infect(G70/$C$3,$C$5,$C$4) -> 0.08901283381 | J70: =IF(E70<$C$7,0,OFFSET(I70,-$C$7,0)) -> 2.179636281
E71: =1+E70 -> 66 | F71: =F70-I70 -> 155.0370989 | G71: =G70+I70-J70 -> 17.04157448 | H71: =H70+J70 -> 9827.921327 | I71: =F71*prob_infect(G71/$C$3,$C$5,$C$4) -> 0.07924304271 | J71: =IF(E71<$C$7,0,OFFSET(I71,-$C$7,0)) -> 1.65212188
E72: 67 | F72: 154.9578558 | G72: 15.46869564 | H72: =H71+J71 -> 9829.573449 | I72: =F72*prob_infect(G72/$C$3,$C$5,$C$4) -> 0.07189402844 | J72: =IF(E72<$C$7,0,OFFSET(I72,-$C$7,0)) -> 1.2553206
E73: 68 | F73: 154.8859618 | G73: 14.28526907 | H73: =H72+J72 -> 9830.828769 | I73: =F73*prob_infect(G73/$C$3,$C$5,$C$4) -> 0.06636411873 | J73: =IF(E73<$C$7,0,OFFSET(I73,-$C$7,0)) -> 0.9567605414
E74: 69 | F74: 154.8195977 | G74: 13.39487264 | H74: =H73+J73 -> 9831.78553 | I74: =F74*prob_infect(G74/$C$3,$C$5,$C$4) -> 0.06220179008 | J74: =IF(E74<$C$7,0,OFFSET(I74,-$C$7,0)) -> 0.7320622776
E75: 70 | F75: 154.7573959 | G75: 12.72501216 | H75: =H74+J74 -> 9832.517592 | I75: =F75*prob_infect(G75/$C$3,$C$5,$C$4) -> 0.05906798072 | J75: =IF(E75<$C$7,0,OFFSET(I75,-$C$7,0)) -> 0.5629319646
E76: 71 | F76: 154.6983279 | G76: 12.22114817 | H76: =H75+J75 -> 9833.080524 | I76: =F76*prob_infect(G76/$C$3,$C$5,$C$4) -> 0.05670785923 | J76: =IF(E76<$C$7,0,OFFSET(I76,-$C$7,0)) -> 0.4356351566
E77: 72 | F77: 154.64162 | G77: 11.84222087 | H77: =H76+J76 -> 9833.516159 | I77: =F77*prob_infect(G77/$C$3,$C$5,$C$4) -> 0.05492973657 | J77: =IF(E77<$C$7,0,OFFSET(I77,-$C$7,0)) -> 0.3398471091
E78: 73 | F78: 154.5866903 | G78: 11.5573035 | H78: =H77+J77 -> 9833.856006 | I78: =F78*prob_infect(G78/$C$3,$C$5,$C$4) -> 0.05358933267 | J78: =IF(E78<$C$7,0,OFFSET(I78,-$C$7,0)) -> 0.2677938502
E79: 74 | F79: 154.533101 | G79: 11.34309898 | H79: =H78+J78 -> 9834.1238 | I79: =F79*prob_infect(G79/$C$3,$C$5,$C$4) -> 0.05257802865 | J79: =IF(E79<$C$7,0,OFFSET(I79,-$C$7,0)) -> 0.2136154232
E80: 75 | F80: 154.4805229 | G80: 11.18206159 | H80: =H79+J79 -> 9834.337415 | I80: =F80*prob_infect(G80/$C$3,$C$5,$C$4) -> 0.0518140649 | J80: =IF(E80<$C$7,0,OFFSET(I80,-$C$7,0)) -> 0.1728913203
E81: 76 | F81: 154.4287089 | G81: 11.06098433 | H81: =H80+J80 -> 9834.510307 | I81: =F81*prob_infect(G81/$C$3,$C$5,$C$4) -> 0.05123592967 | J81: =IF(E81<$C$7,0,OFFSET(I81,-$C$7,0)) -> 0.1422870368
E82: 77 | F82: 154.3774729 | G82: 10.96993323 | H82: =H81+J81 -> 9834.652594 | I82: =F82*prob_infect(G82/$C$3,$C$5,$C$4) -> 0.05079737592 | J82: =IF(E82<$C$7,0,OFFSET(I82,-$C$7,0)) -> 0.1192891413
E83: 78 | F83: 154.3266756 | G83: 10.90144146 | H83: =H82+J82 -> 9834.771883 | I83: =F83*prob_infect(G83/$C$3,$C$5,$C$4) -> 0.05046365684 | J83: =IF(E83<$C$7,0,OFFSET(I83,-$C$7,0)) -> 0.1020053403
E84: 79 | F84: 154.2762119 | G84: 10.84989978 | H84: =H83+J83 -> 9834.873888 | I84: =F84*prob_infect(G84/$C$3,$C$5,$C$4) -> 0.05020867987 | J84: =IF(E84<$C$7,0,OFFSET(I84,-$C$7,0)) -> 0.08901283381
E85: 80 | F85: 154.2260032 | G85: 10.81109563 | H85: =H84+J84 -> 9834.962901 | I85: =F85*prob_infect(G85/$C$3,$C$5,$C$4) -> 0.05001285674 | J85: =IF(E85<$C$7,0,OFFSET(I85,-$C$7,0)) -> 0.07924304271
E86: 81 | F86: 154.1759904 | G86: 10.78186544 | H86: =H85+J85 -> 9835.042144 | I86: =F86*prob_infect(G86/$C$3,$C$5,$C$4) -> 0.04986148224 | J86: =IF(E86<$C$7,0,OFFSET(I86,-$C$7,0)) -> 0.07189402844
E87: 82 | F87: 154.1261289 | G87: 10.75983289 | H87: =H86+J86 -> 9835.114038 | I87: =F87*prob_infect(G87/$C$3,$C$5,$C$4) -> 0.04974351425 | J87: =IF(E87<$C$7,0,OFFSET(I87,-$C$7,0)) -> 0.06636411873
E88: 83 | F88: 154.0763854 | G88: 10.74321229 | H88: =H87+J87 -> 9835.180402 | I88: =F88*prob_infect(G88/$C$3,$C$5,$C$4) -> 0.04965065802 | J88: =IF(E88<$C$7,0,OFFSET(I88,-$C$7,0)) -> 0.06220179008
E89: 84 | F89: 154.0267347 | G89: 10.73066116 | H89: =H88+J88 -> 9835.242604 | I89: =F89*prob_infect(G89/$C$3,$C$5,$C$4) -> 0.04957667969 | J89: =IF(E89<$C$7,0,OFFSET(I89,-$C$7,0)) -> 0.05906798072
E90: 85 | F90: 153.977158 | G90: 10.72116986 | H90: =H89+J89 -> 9835.301672 | I90: =F90*prob_infect(G90/$C$3,$C$5,$C$4) -> 0.04951689251 | J90: =IF(E90<$C$7,0,OFFSET(I90,-$C$7,0)) -> 0.05670785923
E91: 86 | F91: 153.9276412 | G91: 10.71397889 | H91: =H90+J90 -> 9835.35838 | I91: =F91*prob_infect(G91/$C$3,$C$5,$C$4) -> 0.04946777205 | J91: =IF(E91<$C$7,0,OFFSET(I91,-$C$7,0)) -> 0.05492973657
E92: 87 | F92: 153.8781734 | G92: 10.70851692 | H92: =H91+J91 -> 9835.41331 | I92: =F92*prob_infect(G92/$C$3,$C$5,$C$4) -> 0.04942666796 | J92: =IF(E92<$C$7,0,OFFSET(I92,-$C$7,0)) -> 0.05358933267
E93: 88 | F93: 153.8287467 | G93: 10.70435426 | H93: =H92+J92 -> 9835.466899 | I93: =F93*prob_infect(G93/$C$3,$C$5,$C$4) -> 0.04939158753 | J93: =IF(E93<$C$7,0,OFFSET(I93,-$C$7,0)) -> 0.05257802865
E94: 89 | F94: 153.7793551 | G94: 10.70116782 | H94: =H93+J93 -> 9835.519477 | I94: =F94*prob_infect(G94/$C$3,$C$5,$C$4) -> 0.04936103302 | J94: =IF(E94<$C$7,0,OFFSET(I94,-$C$7,0)) -> 0.0518140649
E95: 90 | F95: 153.7299941 | G95: 10.69871479 | H95: =H94+J94 -> 9835.571291 | I95: =F95*prob_infect(G95/$C$3,$C$5,$C$4) -> 0.04933387912 | J95: =IF(E95<$C$7,0,OFFSET(I95,-$C$7,0)) -> 0.05123592967
E96: 91 | F96: 153.6806602 | G96: 10.69681274 | H96: =H95+J95 -> 9835.622527 | I96: =F96*prob_infect(G96/$C$3,$C$5,$C$4) -> 0.04930928069 | J96: =IF(E96<$C$7,0,OFFSET(I96,-$C$7,0)) -> 0.05079737592
E97: 92 | F97: 153.6313509 | G97: 10.69532464 | H97: =H96+J96 -> 9835.673324 | I97: =F97*prob_infect(G97/$C$3,$C$5,$C$4) -> 0.04928660308 | J97: =IF(E97<$C$7,0,OFFSET(I97,-$C$7,0)) -> 0.05046365684
E98: 93 | F98: 153.5820643 | G98: 10.69414759 | H98: =H97+J97 -> 9835.723788 | I98: =F98*prob_infect(G98/$C$3,$C$5,$C$4) -> 0.04926536983 | J98: =IF(E98<$C$7,0,OFFSET(I98,-$C$7,0)) -> 0.05020867987
E99: 94 | F99: 153.532799 | G99: 10.69320428 | H99: =H98+J98 -> 9835.773997 | I99: =F99*prob_infect(G99/$C$3,$C$5,$C$4) -> 0.04924522316 | J99: =IF(E99<$C$7,0,OFFSET(I99,-$C$7,0)) -> 0.05001285674
E100: 95 | F100: 153.4835537 | G100: 10.69243664 | H100: =H99+J99 -> 9835.82401 | I100: =F100*prob_infect(G100/$C$3,$C$5,$C$4) -> 0.04922589439 | J100: =IF(E100<$C$7,0,OFFSET(I100,-$C$7,0)) -> 0.04986148224
E101: 96 | F101: 153.4343278 | G101: 10.69180106 | H101: =H100+J100 -> 9835.873871 | I101: =F101*prob_infect(G101/$C$3,$C$5,$C$4) -> 0.04920718171 | J101: =IF(E101<$C$7,0,OFFSET(I101,-$C$7,0)) -> 0.04974351425
E102: 97 | F102: 153.3851207 | G102: 10.69126472 | H102: =H101+J101 -> 9835.923615 | I102: =F102*prob_infect(G102/$C$3,$C$5,$C$4) -> 0.0491889335 | J102: =IF(E102<$C$7,0,OFFSET(I102,-$C$7,0)) -> 0.04965065802
E103: 98 | F103: 153.3359317 | G103: 10.690803 | H103: =H102+J102 -> 9835.973265 | I103: =F103*prob_infect(G103/$C$3,$C$5,$C$4) -> 0.04917103583 | J103: =IF(E103<$C$7,0,OFFSET(I103,-$C$7,0)) -> 0.04957667969
E104: 99 | F104: 153.2867607 | G104: 10.69039735 | H104: =H103+J103 -> 9836.022842 | I104: =F104*prob_infect(G104/$C$3,$C$5,$C$4) -> 0.04915340307 | J104: =IF(E104<$C$7,0,OFFSET(I104,-$C$7,0)) -> 0.04951689251
E105: 100 | F105: 153.2376073 | G105: 10.69003386 | H105: =H104+J104 -> 9836.072359 | I105: =F105*prob_infect(G105/$C$3,$C$5,$C$4) -> 0.04913597089 | J105: =IF(E105<$C$7,0,OFFSET(I105,-$C$7,0)) -> 0.04946777205
E106: 101 | F106: 153.1884713 | G106: 10.68970206 | H106: =H105+J105 -> 9836.121827 | I106: =F106*prob_infect(G106/$C$3,$C$5,$C$4) -> 0.04911869095 | J106: =IF(E106<$C$7,0,OFFSET(I106,-$C$7,0)) -> 0.04942666796
E107: 102 | F107: 153.1393526 | G107: 10.68939409 | H107: =H106+J106 -> 9836.171253 | I107: =F107*prob_infect(G107/$C$3,$C$5,$C$4) -> 0.04910152696 | J107: =IF(E107<$C$7,0,OFFSET(I107,-$C$7,0)) -> 0.04939158753
E108: 103 | F108: 153.0902511 | G108: 10.68910403 | H108: =H107+J107 -> 9836.220645 | I108: =F108*prob_infect(G108/$C$3,$C$5,$C$4) -> 0.04908445163 | J108: =IF(E108<$C$7,0,OFFSET(I108,-$C$7,0)) -> 0.04936103302
E109: 104 | F109: 153.0411666 | G109: 10.68882744 | H109: =H108+J108 -> 9836.270006 | I109: =F109*prob_infect(G109/$C$3,$C$5,$C$4) -> 0.0490674445 | J109: =IF(E109<$C$7,0,OFFSET(I109,-$C$7,0)) -> 0.04933387912
E110: 105 | F110: 152.9920992 | G110: 10.68856101 | H110: =H109+J109 -> 9836.31934 | I110: =F110*prob_infect(G110/$C$3,$C$5,$C$4) -> 0.04905049019 | J110: =IF(E110<$C$7,0,OFFSET(I110,-$C$7,0)) -> 0.04930928069
E111: 106 | F111: 152.9430487 | G111: 10.68830222 | H111: =H110+J110 -> 9836.368649 | I111: =F111*prob_infect(G111/$C$3,$C$5,$C$4) -> 0.04903357717 | J111: =IF(E111<$C$7,0,OFFSET(I111,-$C$7,0)) -> 0.04928660308
E112: 107 | F112: 152.8940151 | G112: 10.68804919 | H112: =H111+J111 -> 9836.417936 | I112: =F112*prob_infect(G112/$C$3,$C$5,$C$4) -> 0.04901669676 | J112: =IF(E112<$C$7,0,OFFSET(I112,-$C$7,0)) -> 0.04926536983
E113: 108 | F113: 152.8449984 | G113: 10.68780052 | H113: =H112+J112 -> 9836.467201 | I113: =F113*prob_infect(G113/$C$3,$C$5,$C$4) -> 0.04899984247 | J113: =IF(E113<$C$7,0,OFFSET(I113,-$C$7,0)) -> 0.04924522316
E114: 109 | F114: 152.7959986 | G114: 10.68755514 | H114: =H113+J113 -> 9836.516446 | I114: =F114*prob_infect(G114/$C$3,$C$5,$C$4) -> 0.04898300939 | J114: =IF(E114<$C$7,0,OFFSET(I114,-$C$7,0)) -> 0.04922589439
E115: 110 | F115: 152.7470156 | G115: 10.68731226 | H115: =H114+J114 -> 9836.565672 | I115: =F115*prob_infect(G115/$C$3,$C$5,$C$4) -> 0.04896619386 | J115: =IF(E115<$C$7,0,OFFSET(I115,-$C$7,0)) -> 0.04920718171
E116: 111 | F116: 152.6980494 | G116: 10.68707127 | H116: =H115+J115 -> 9836.614879 | I116: =F116*prob_infect(G116/$C$3,$C$5,$C$4) -> 0.04894939313 | J116: =IF(E116<$C$7,0,OFFSET(I116,-$C$7,0)) -> 0.0491889335
E117: 112 | F117: 152.6491 | G117: 10.68683173 | H117: =H116+J116 -> 9836.664068 | I117: =F117*prob_infect(G117/$C$3,$C$5,$C$4) -> 0.04893260511 | J117: =IF(E117<$C$7,0,OFFSET(I117,-$C$7,0)) -> 0.04917103583
E118: 113 | F118: 152.6001674 | G118: 10.6865933 | H118: =H117+J117 -> 9836.713239 | I118: =F118*prob_infect(G118/$C$3,$C$5,$C$4) -> 0.04891582826 | J118: =IF(E118<$C$7,0,OFFSET(I118,-$C$7,0)) -> 0.04915340307
E119: 114 | F119: 152.5512516 | G119: 10.68635572 | H119: =H118+J118 -> 9836.762393 | I119: =F119*prob_infect(G119/$C$3,$C$5,$C$4) -> 0.0488990614 | J119: =IF(E119<$C$7,0,OFFSET(I119,-$C$7,0)) -> 0.04913597089
E120: 115 | F120: 152.5023525 | G120: 10.68611881 | H120: =H119+J119 -> 9836.811529 | I120: =F120*prob_infect(G120/$C$3,$C$5,$C$4) -> 0.04888230366 | J120: =IF(E120<$C$7,0,OFFSET(I120,-$C$7,0)) -> 0.04911869095
E121: 116 | F121: 152.4534702 | G121: 10.68588242 | H121: =H120+J120 -> 9836.860647 | I121: =F121*prob_infect(G121/$C$3,$C$5,$C$4) -> 0.04886555437 | J121: =IF(E121<$C$7,0,OFFSET(I121,-$C$7,0)) -> 0.04910152696
E122: 117 | F122: 152.4046046 | G122: 10.68564645 | H122: =H121+J121 -> 9836.909749 | I122: =F122*prob_infect(G122/$C$3,$C$5,$C$4) -> 0.04884881304 | J122: =IF(E122<$C$7,0,OFFSET(I122,-$C$7,0)) -> 0.04908445163
E123: 118 | F123: 152.3557558 | G123: 10.68541081 | H123: =H122+J122 -> 9836.958833 | I123: =F123*prob_infect(G123/$C$3,$C$5,$C$4) -> 0.04883207929 | J123: =IF(E123<$C$7,0,OFFSET(I123,-$C$7,0)) -> 0.0490674445
E124: 119 | F124: 152.3069238 | G124: 10.68517545 | H124: =H123+J123 -> 9837.007901 | I124: =F124*prob_infect(G124/$C$3,$C$5,$C$4) -> 0.04881535284 | J124: =IF(E124<$C$7,0,OFFSET(I124,-$C$7,0)) -> 0.04905049019
E125: 120 | F125: 152.2581084 | G125: 10.68494031 | H125: =H124+J124 -> 9837.056951 | I125: =F125*prob_infect(G125/$C$3,$C$5,$C$4) -> 0.04879863349 | J125: =IF(E125<$C$7,0,OFFSET(I125,-$C$7,0)) -> 0.04903357717
E126: 121 | F126: 152.2093098 | G126: 10.68470537 | H126: =H125+J125 -> 9837.105985 | I126: =F126*prob_infect(G126/$C$3,$C$5,$C$4) -> 0.04878192106 | J126: =IF(E126<$C$7,0,OFFSET(I126,-$C$7,0)) -> 0.04901669676
E127: 122 | F127: 152.1605278 | G127: 10.68447059 | H127: =H126+J126 -> 9837.155002 | I127: =F127*prob_infect(G127/$C$3,$C$5,$C$4) -> 0.04876521545 | J127: =IF(E127<$C$7,0,OFFSET(I127,-$C$7,0)) -> 0.04899984247
E128: 123 | F128: 152.1117626 | G128: 10.68423596 | H128: =H127+J127 -> 9837.204001 | I128: =F128*prob_infect(G128/$C$3,$C$5,$C$4) -> 0.04874851655 | J128: =IF(E128<$C$7,0,OFFSET(I128,-$C$7,0)) -> 0.04898300939
E129: 124 | F129: 152.0630141 | G129: 10.68400147 | H129: =H128+J128 -> 9837.252984 | I129: =F129*prob_infect(G129/$C$3,$C$5,$C$4) -> 0.04873182431 | J129: =IF(E129<$C$7,0,OFFSET(I129,-$C$7,0)) -> 0.04896619386
E130: 125 | F130: 152.0142823 | G130: 10.6837671 | H130: =H129+J129 -> 9837.301951 | I130: =F130*prob_infect(G130/$C$3,$C$5,$C$4) -> 0.04871513866 | J130: =IF(E130<$C$7,0,OFFSET(I130,-$C$7,0)) -> 0.04894939313
E131: 126 | F131: 151.9655672 | G131: 10.68353285 | H131: =H130+J130 -> 9837.3509 | I131: =F131*prob_infect(G131/$C$3,$C$5,$C$4) -> 0.04869845956 | J131: =IF(E131<$C$7,0,OFFSET(I131,-$C$7,0)) -> 0.04893260511
E132: 127 | F132: 151.9168687 | G132: 10.6832987 | H132: =H131+J131 -> 9837.399833 | I132: =F132*prob_infect(G132/$C$3,$C$5,$C$4) -> 0.048681787 | J132: =IF(E132<$C$7,0,OFFSET(I132,-$C$7,0)) -> 0.04891582826
E133: 128 | F133: 151.8681869 | G133: 10.68306466 | H133: =H132+J132 -> 9837.448748 | I133: =F133*prob_infect(G133/$C$3,$C$5,$C$4) -> 0.04866512093 | J133: =IF(E133<$C$7,0,OFFSET(I133,-$C$7,0)) -> 0.0488990614
E134: 129 | F134: 151.8195218 | G134: 10.68283072 | H134: =H133+J133 -> 9837.497647 | I134: =F134*prob_infect(G134/$C$3,$C$5,$C$4) -> 0.04864846135 | J134: =IF(E134<$C$7,0,OFFSET(I134,-$C$7,0)) -> 0.04888230366
E135: =1+E134 -> 130 | F135: =F134-I134 -> 151.7708733 | G135: =G134+I134-J134 -> 10.68259688 | H135: =H134+J134 -> 9837.54653 | I135: =F135*prob_infect(G135/$C$3,$C$5,$C$4) -> 0.04863180824 | J135: =IF(E135<$C$7,0,OFFSET(I135,-$C$7,0)) -> 0.04886555437
E136: 131 | F136: 151.7222415 | G136: 10.68236313 | H136: =H135+J135 -> 9837.595395 | I136: =F136*prob_infect(G136/$C$3,$C$5,$C$4) -> 0.04861516158 | J136: =IF(E136<$C$7,0,OFFSET(I136,-$C$7,0)) -> 0.04884881304
E137: 132 | F137: 151.6736264 | G137: 10.68212948 | H137: =H136+J136 -> 9837.644244 | I137: =F137*prob_infect(G137/$C$3,$C$5,$C$4) -> 0.04859852136 | J137: =IF(E137<$C$7,0,OFFSET(I137,-$C$7,0)) -> 0.04883207929
E138: 133 | F138: 151.6250278 | G138: 10.68189592 | H138: =H137+J137 -> 9837.693076 | I138: =F138*prob_infect(G138/$C$3,$C$5,$C$4) -> 0.04858188759 | J138: =IF(E138<$C$7,0,OFFSET(I138,-$C$7,0)) -> 0.04881535284
E139: 134 | F139: 151.5764459 | G139: 10.68166246 | H139: =H138+J138 -> 9837.741892 | I139: =F139*prob_infect(G139/$C$3,$C$5,$C$4) -> 0.04856526025 | J139: =IF(E139<$C$7,0,OFFSET(I139,-$C$7,0)) -> 0.04879863349
E140: 135 | F140: 151.5278807 | G140: 10.68142908 | H140: =H139+J139 -> 9837.79069 | I140: =F140*prob_infect(G140/$C$3,$C$5,$C$4) -> 0.04854863933 | J140: =IF(E140<$C$7,0,OFFSET(I140,-$C$7,0)) -> 0.04878192106
E141: 136 | F141: 151.479332 | G141: 10.6811958 | H141: =H140+J140 -> 9837.839472 | I141: =F141*prob_infect(G141/$C$3,$C$5,$C$4) -> 0.04853202484 | J141: =IF(E141<$C$7,0,OFFSET(I141,-$C$7,0)) -> 0.04876521545
E142: 137 | F142: 151.4308 | G142: 10.68096261 | H142: =H141+J141 -> 9837.888237 | I142: =F142*prob_infect(G142/$C$3,$C$5,$C$4) -> 0.04851541676 | J142: =IF(E142<$C$7,0,OFFSET(I142,-$C$7,0)) -> 0.04874851655
E143: 138 | F143: 151.3822846 | G143: 10.68072951 | H143: =H142+J142 -> 9837.936986 | I143: =F143*prob_infect(G143/$C$3,$C$5,$C$4) -> 0.04849881509 | J143: =IF(E143<$C$7,0,OFFSET(I143,-$C$7,0)) -> 0.04873182431
E144: 139 | F144: 151.3337858 | G144: 10.6804965 | H144: =H143+J143 -> 9837.985718 | I144: =F144*prob_infect(G144/$C$3,$C$5,$C$4) -> 0.04848221983 | J144: =IF(E144<$C$7,0,OFFSET(I144,-$C$7,0)) -> 0.04871513866
E145: 140 | F145: 151.2853036 | G145: 10.68026358 | H145: =H144+J144 -> 9838.034433 | I145: =F145*prob_infect(G145/$C$3,$C$5,$C$4) -> 0.04846563097 | J145: =IF(E145<$C$7,0,OFFSET(I145,-$C$7,0)) -> 0.04869845956
E146: 141 | F146: 151.2368379 | G146: 10.68003076 | H146: =H145+J145 -> 9838.083131 | I146: =F146*prob_infect(G146/$C$3,$C$5,$C$4) -> 0.04844904852 | J146: =IF(E146<$C$7,0,OFFSET(I146,-$C$7,0)) -> 0.048681787
E147: 142 | F147: 151.1883889 | G147: 10.67979802 | H147: =H146+J146 -> 9838.131813 | I147: =F147*prob_infect(G147/$C$3,$C$5,$C$4) -> 0.04843247246 | J147: =IF(E147<$C$7,0,OFFSET(I147,-$C$7,0)) -> 0.04866512093
E148: 143 | F148: 151.1399564 | G148: 10.67956537 | H148: =H147+J147 -> 9838.180478 | I148: =F148*prob_infect(G148/$C$3,$C$5,$C$4) -> 0.0484159028 | J148: =IF(E148<$C$7,0,OFFSET(I148,-$C$7,0)) -> 0.04864846135
E149: 144 | F149: 151.0915405 | G149: 10.67933281 | H149: =H148+J148 -> 9838.229127 | I149: =F149*prob_infect(G149/$C$3,$C$5,$C$4) -> 0.04839933953 | J149: =IF(E149<$C$7,0,OFFSET(I149,-$C$7,0)) -> 0.04863180824
E150: 145 | F150: 151.0431412 | G150: 10.67910034 | H150: =H149+J149 -> 9838.277758 | I150: =F150*prob_infect(G150/$C$3,$C$5,$C$4) -> 0.04838278264 | J150: =IF(E150<$C$7,0,OFFSET(I150,-$C$7,0)) -> 0.04861516158
E151: 146 | F151: 150.9947584 | G151: 10.67886796 | H151: =H150+J150 -> 9838.326374 | I151: =F151*prob_infect(G151/$C$3,$C$5,$C$4) -> 0.04836623215 | J151: =IF(E151<$C$7,0,OFFSET(I151,-$C$7,0)) -> 0.04859852136
E152: 147 | F152: 150.9463922 | G152: 10.67863567 | H152: =H151+J151 -> 9838.374972 | I152: =F152*prob_infect(G152/$C$3,$C$5,$C$4) -> 0.04834968803 | J152: =IF(E152<$C$7,0,OFFSET(I152,-$C$7,0)) -> 0.04858188759
E153: 148 | F153: 150.8980425 | G153: 10.67840347 | H153: =H152+J152 -> 9838.423554 | I153: =F153*prob_infect(G153/$C$3,$C$5,$C$4) -> 0.04833315029 | J153: =IF(E153<$C$7,0,OFFSET(I153,-$C$7,0)) -> 0.04856526025
E154: 149 | F154: 150.8497093 | G154: 10.67817136 | H154: =H153+J153 -> 9838.472119 | I154: =F154*prob_infect(G154/$C$3,$C$5,$C$4) -> 0.04831661893 | J154: =IF(E154<$C$7,0,OFFSET(I154,-$C$7,0)) -> 0.04854863933
E155: 150 | F155: 150.8013927 | G155: 10.67793934 | H155: =H154+J154 -> 9838.520668 | I155: =F155*prob_infect(G155/$C$3,$C$5,$C$4) -> 0.04830009394 | J155: =IF(E155<$C$7,0,OFFSET(I155,-$C$7,0)) -> 0.04853202484
E156: 151 | F156: 150.7530926 | G156: 10.67770741 | H156: =H155+J155 -> 9838.5692 | I156: =F156*prob_infect(G156/$C$3,$C$5,$C$4) -> 0.04828357532 | J156: =IF(E156<$C$7,0,OFFSET(I156,-$C$7,0)) -> 0.04851541676
E157: 152 | F157: 150.704809 | G157: 10.67747557 | H157: =H156+J156 -> 9838.617715 | I157: =F157*prob_infect(G157/$C$3,$C$5,$C$4) -> 0.04826706306 | J157: =IF(E157<$C$7,0,OFFSET(I157,-$C$7,0)) -> 0.04849881509
E158: 153 | F158: 150.656542 | G158: 10.67724382 | H158: =H157+J157 -> 9838.666214 | I158: =F158*prob_infect(G158/$C$3,$C$5,$C$4) -> 0.04825055717 | J158: =IF(E158<$C$7,0,OFFSET(I158,-$C$7,0)) -> 0.04848221983
E159: 154 | F159: 150.6082914 | G159: 10.67701216 | H159: =H158+J158 -> 9838.714696 | I159: =F159*prob_infect(G159/$C$3,$C$5,$C$4) -> 0.04823405765 | J159: =IF(E159<$C$7,0,OFFSET(I159,-$C$7,0)) -> 0.04846563097
E160: 155 | F160: 150.5600574 | G160: 10.67678058 | H160: =H159+J159 -> 9838.763162 | I160: =F160*prob_infect(G160/$C$3,$C$5,$C$4) -> 0.04821756448 | J160: =IF(E160<$C$7,0,OFFSET(I160,-$C$7,0)) -> 0.04844904852
E161: 156 | F161: 150.5118398 | G161: 10.6765491 | H161: =H160+J160 -> 9838.811611 | I161: =F161*prob_infect(G161/$C$3,$C$5,$C$4) -> 0.04820107766 | J161: =IF(E161<$C$7,0,OFFSET(I161,-$C$7,0)) -> 0.04843247246
E162: 157 | F162: 150.4636387 | G162: 10.6763177 | H162: =H161+J161 -> 9838.860044 | I162: =F162*prob_infect(G162/$C$3,$C$5,$C$4) -> 0.0481845972 | J162: =IF(E162<$C$7,0,OFFSET(I162,-$C$7,0)) -> 0.0484159028
E163: 158 | F163: 150.4154541 | G163: 10.6760864 | H163: =H162+J162 -> 9838.908459 | I163: =F163*prob_infect(G163/$C$3,$C$5,$C$4) -> 0.04816812308 | J163: =IF(E163<$C$7,0,OFFSET(I163,-$C$7,0)) -> 0.04839933953
E164: 159 | F164: 150.367286 | G164: 10.67585518 | H164: =H163+J163 -> 9838.956859 | I164: =F164*prob_infect(G164/$C$3,$C$5,$C$4) -> 0.04815165531 | J164: =IF(E164<$C$7,0,OFFSET(I164,-$C$7,0)) -> 0.04838278264
E165: 160 | F165: 150.3191343 | G165: 10.67562405 | H165: =H164+J164 -> 9839.005242 | I165: =F165*prob_infect(G165/$C$3,$C$5,$C$4) -> 0.04813519389 | J165: =IF(E165<$C$7,0,OFFSET(I165,-$C$7,0)) -> 0.04836623215
E166: 161 | F166: 150.2709991 | G166: 10.67539302 | H166: =H165+J165 -> 9839.053608 | I166: =F166*prob_infect(G166/$C$3,$C$5,$C$4) -> 0.0481187388 | J166: =IF(E166<$C$7,0,OFFSET(I166,-$C$7,0)) -> 0.04834968803
E167: 162 | F167: 150.2228804 | G167: 10.67516207 | H167: =H166+J166 -> 9839.101958 | I167: =F167*prob_infect(G167/$C$3,$C$5,$C$4) -> 0.04810229005 | J167: =IF(E167<$C$7,0,OFFSET(I167,-$C$7,0)) -> 0.04833315029
E168: 163 | F168: 150.1747781 | G168: 10.67493121 | H168: =H167+J167 -> 9839.150291 | I168: =F168*prob_infect(G168/$C$3,$C$5,$C$4) -> 0.04808584764 | J168: =IF(E168<$C$7,0,OFFSET(I168,-$C$7,0)) -> 0.04831661893
E169: 164 | F169: 150.1266923 | G169: 10.67470044 | H169: =H168+J168 -> 9839.198607 | I169: =F169*prob_infect(G169/$C$3,$C$5,$C$4) -> 0.04806941156 | J169: =IF(E169<$C$7,0,OFFSET(I169,-$C$7,0)) -> 0.04830009394
E170: 165 | F170: 150.0786229 | G170: 10.67446975 | H170: =H169+J169 -> 9839.246907 | I170: =F170*prob_infect(G170/$C$3,$C$5,$C$4) -> 0.0480529818 | J170: =IF(E170<$C$7,0,OFFSET(I170,-$C$7,0)) -> 0.04828357532
E171: 166 | F171: 150.0305699 | G171: 10.67423916 | H171: =H170+J170 -> 9839.295191 | I171: =F171*prob_infect(G171/$C$3,$C$5,$C$4) -> 0.04803655837 | J171: =IF(E171<$C$7,0,OFFSET(I171,-$C$7,0)) -> 0.04826706306
E172: 167 | F172: 149.9825333 | G172: 10.67400865 | H172: =H171+J171 -> 9839.343458 | I172: =F172*prob_infect(G172/$C$3,$C$5,$C$4) -> 0.04802014126 | J172: =IF(E172<$C$7,0,OFFSET(I172,-$C$7,0)) -> 0.04825055717
E173: 168 | F173: 149.9345132 | G173: 10.67377824 | H173: =H172+J172 -> 9839.391709 | I173: =F173*prob_infect(G173/$C$3,$C$5,$C$4) -> 0.04800373048 | J173: =IF(E173<$C$7,0,OFFSET(I173,-$C$7,0)) -> 0.04823405765
E174: 169 | F174: 149.8865094 | G174: 10.67354791 | H174: =H173+J173 -> 9839.439943 | I174: =F174*prob_infect(G174/$C$3,$C$5,$C$4) -> 0.04798732601 | J174: =IF(E174<$C$7,0,OFFSET(I174,-$C$7,0)) -> 0.04821756448
E175: 170 | F175: 149.8385221 | G175: 10.67331767 | H175: =H174+J174 -> 9839.48816 | I175: =F175*prob_infect(G175/$C$3,$C$5,$C$4) -> 0.04797092785 | J175: =IF(E175<$C$7,0,OFFSET(I175,-$C$7,0)) -> 0.04820107766
E176: 171 | F176: 149.7905512 | G176: 10.67308752 | H176: =H175+J175 -> 9839.536361 | I176: =F176*prob_infect(G176/$C$3,$C$5,$C$4) -> 0.047954536 | J176: =IF(E176<$C$7,0,OFFSET(I176,-$C$7,0)) -> 0.0481845972
E177: 172 | F177: 149.7425967 | G177: 10.67285746 | H177: =H176+J176 -> 9839.584546 | I177: =F177*prob_infect(G177/$C$3,$C$5,$C$4) -> 0.04793815047 | J177: =IF(E177<$C$7,0,OFFSET(I177,-$C$7,0)) -> 0.04816812308
E178: 173 | F178: 149.6946585 | G178: 10.67262749 | H178: =H177+J177 -> 9839.632714 | I178: =F178*prob_infect(G178/$C$3,$C$5,$C$4) -> 0.04792177123 | J178: =IF(E178<$C$7,0,OFFSET(I178,-$C$7,0)) -> 0.04815165531
E179: 174 | F179: 149.6467367 | G179: 10.67239761 | H179: =H178+J178 -> 9839.680866 | I179: =F179*prob_infect(G179/$C$3,$C$5,$C$4) -> 0.0479053983 | J179: =IF(E179<$C$7,0,OFFSET(I179,-$C$7,0)) -> 0.04813519389
E180: 175 | F180: 149.5988313 | G180: 10.67216781 | H180: =H179+J179 -> 9839.729001 | I180: =F180*prob_infect(G180/$C$3,$C$5,$C$4) -> 0.04788903167 | J180: =IF(E180<$C$7,0,OFFSET(I180,-$C$7,0)) -> 0.0481187388
E181: 176 | F181: 149.5509423 | G181: 10.6719381 | H181: =H180+J180 -> 9839.77712 | I181: =F181*prob_infect(G181/$C$3,$C$5,$C$4) -> 0.04787267133 | J181: =IF(E181<$C$7,0,OFFSET(I181,-$C$7,0)) -> 0.04810229005
E182: 177 | F182: 149.5030696 | G182: 10.67170848 | H182: =H181+J181 -> 9839.825222 | I182: =F182*prob_infect(G182/$C$3,$C$5,$C$4) -> 0.04785631729 | J182: =IF(E182<$C$7,0,OFFSET(I182,-$C$7,0)) -> 0.04808584764
E183: 178 | F183: 149.4552133 | G183: 10.67147895 | H183: =H182+J182 -> 9839.873308 | I183: =F183*prob_infect(G183/$C$3,$C$5,$C$4) -> 0.04783996954 | J183: =IF(E183<$C$7,0,OFFSET(I183,-$C$7,0)) -> 0.04806941156
E184: 179 | F184: 149.4073733 | G184: 10.67124951 | H184: =H183+J183 -> 9839.921377 | I184: =F184*prob_infect(G184/$C$3,$C$5,$C$4) -> 0.04782362807 | J184: =IF(E184<$C$7,0,OFFSET(I184,-$C$7,0)) -> 0.0480529818
E185: 180 | F185: 149.3595497 | G185: 10.67102016 | H185: =H184+J184 -> 9839.96943 | I185: =F185*prob_infect(G185/$C$3,$C$5,$C$4) -> 0.04780729289 | J185: =IF(E185<$C$7,0,OFFSET(I185,-$C$7,0)) -> 0.04803655837
E186: 181 | F186: 149.3117424 | G186: 10.67079089 | H186: =H185+J185 -> 9840.017467 | I186: =F186*prob_infect(G186/$C$3,$C$5,$C$4) -> 0.04779096399 | J186: =IF(E186<$C$7,0,OFFSET(I186,-$C$7,0)) -> 0.04802014126
E187: 182 | F187: 149.2639515 | G187: 10.67056172 | H187: =H186+J186 -> 9840.065487 | I187: =F187*prob_infect(G187/$C$3,$C$5,$C$4) -> 0.04777464137 | J187: =IF(E187<$C$7,0,OFFSET(I187,-$C$7,0)) -> 0.04800373048
E188: 183 | F188: 149.2161768 | G188: 10.67033263 | H188: =H187+J187 -> 9840.113491 | I188: =F188*prob_infect(G188/$C$3,$C$5,$C$4) -> 0.04775832503 | J188: =IF(E188<$C$7,0,OFFSET(I188,-$C$7,0)) -> 0.04798732601
E189: 184 | F189: 149.1684185 | G189: 10.67010363 | H189: =H188+J188 -> 9840.161478 | I189: =F189*prob_infect(G189/$C$3,$C$5,$C$4) -> 0.04774201496 | J189: =IF(E189<$C$7,0,OFFSET(I189,-$C$7,0)) -> 0.04797092785
E190: 185 | F190: 149.1206765 | G190: 10.66987471 | H190: =H189+J189 -> 9840.209449 | I190: =F190*prob_infect(G190/$C$3,$C$5,$C$4) -> 0.04772571115 | J190: =IF(E190<$C$7,0,OFFSET(I190,-$C$7,0)) -> 0.047954536
E191: 186 | F191: 149.0729508 | G191: 10.66964589 | H191: =H190+J190 -> 9840.257403 | I191: =F191*prob_infect(G191/$C$3,$C$5,$C$4) -> 0.04770941362 | J191: =IF(E191<$C$7,0,OFFSET(I191,-$C$7,0)) -> 0.04793815047
E192: 187 | F192: 149.0252414 | G192: 10.66941715 | H192: =H191+J191 -> 9840.305341 | I192: =F192*prob_infect(G192/$C$3,$C$5,$C$4) -> 0.04769312235 | J192: =IF(E192<$C$7,0,OFFSET(I192,-$C$7,0)) -> 0.04792177123
E193: 188 | F193: 148.9775482 | G193: 10.6691885 | H193: =H192+J192 -> 9840.353263 | I193: =F193*prob_infect(G193/$C$3,$C$5,$C$4) -> 0.04767683734 | J193: =IF(E193<$C$7,0,OFFSET(I193,-$C$7,0)) -> 0.0479053983
E194: 189 | F194: 148.9298714 | G194: 10.66895994 | H194: =H193+J193 -> 9840.401169 | I194: =F194*prob_infect(G194/$C$3,$C$5,$C$4) -> 0.04766055859 | J194: =IF(E194<$C$7,0,OFFSET(I194,-$C$7,0)) -> 0.04788903167
E195: 190 | F195: 148.8822108 | G195: 10.66873147 | H195: =H194+J194 -> 9840.449058 | I195: =F195*prob_infect(G195/$C$3,$C$5,$C$4) -> 0.04764428609 | J195: =IF(E195<$C$7,0,OFFSET(I195,-$C$7,0)) -> 0.04787267133
E196: 191 | F196: 148.8345665 | G196: 10.66850308 | H196: =H195+J195 -> 9840.49693 | I196: =F196*prob_infect(G196/$C$3,$C$5,$C$4) -> 0.04762801985 | J196: =IF(E196<$C$7,0,OFFSET(I196,-$C$7,0)) -> 0.04785631729
E197: 192 | F197: 148.7869385 | G197: 10.66827478 | H197: =H196+J196 -> 9840.544787 | I197: =F197*prob_infect(G197/$C$3,$C$5,$C$4) -> 0.04761175985 | J197: =IF(E197<$C$7,0,OFFSET(I197,-$C$7,0)) -> 0.04783996954
E198: 193 | F198: 148.7393268 | G198: 10.66804658 | H198: =H197+J197 -> 9840.592627 | I198: =F198*prob_infect(G198/$C$3,$C$5,$C$4) -> 0.04759550611 | J198: =IF(E198<$C$7,0,OFFSET(I198,-$C$7,0)) -> 0.04782362807
E199: =1+E198 -> 194 | F199: =F198-I198 -> 148.6917313 | G199: =G198+I198-J198 -> 10.66781845 | H199: =H198+J198 -> 9840.64045 | I199: =F199*prob_infect(G199/$C$3,$C$5,$C$4) -> 0.0475792586 | J199: =IF(E199<$C$7,0,OFFSET(I199,-$C$7,0)) -> 0.04780729289
E200: 195 | F200: 148.644152 | G200: 10.66759042 | H200: =H199+J199 -> 9840.688258 | I200: =F200*prob_infect(G200/$C$3,$C$5,$C$4) -> 0.04756301734 | J200: =IF(E200<$C$7,0,OFFSET(I200,-$C$7,0)) -> 0.04779096399
E201: 196 | F201: 148.596589 | G201: 10.66736247 | H201: =H200+J200 -> 9840.736049 | I201: =F201*prob_infect(G201/$C$3,$C$5,$C$4) -> 0.04754678232 | J201: =IF(E201<$C$7,0,OFFSET(I201,-$C$7,0)) -> 0.04777464137
E202: 197 | F202: 148.5490422 | G202: 10.66713461 | H202: =H201+J201 -> 9840.783823 | I202: =F202*prob_infect(G202/$C$3,$C$5,$C$4) -> 0.04753055353 | J202: =IF(E202<$C$7,0,OFFSET(I202,-$C$7,0)) -> 0.04775832503
... 322 more rows
